Workbook

Sheet Disclaimer

Sheet Instructions
A1: Power Budget Instructions

Sheet Normal Config
A1: Normal Mode Thermal Config Matrix | N1: =Summary!D15 -> 0.9127272727 | O1: <-- Margin to PS rating
A2: Notes: 1. The 27°C configuration alone is limited to elevations of 900m or less. Altitudes higher than 900m need to be de-rated to ASHRAE Class 2 levels. 2. To support system fan redundancy, the system must be configured with two power supplies to maintain sufficient cooling. Concurrent system and power supply fan failures is not supported. 3. Processor throttling may occur which may impact system performance. CPU reliability is not impacted. 4. In fan fail mode, Intel® I/O Modules AXX10GBTWLIOM and AXX2FDRIBIOM are only supported in the specified base system model configured with 120W processors and DRx4 memory. 5. Use of the designated PCIe* slot is limited to add-in cards that have air flow requirements of 100 LFM or less. See add-in card specs for air flow requirements. 6. For ASHRAE Class 3 and Class 4 support, the following power supply margining is required to meet thermal specifications: a) For dual power supply configurations, the power budget must fit within a single power supply rated load and be installed in a dual configuration, or b) For single power supply configurations, the power budget must be sized with 30% margin to single power supply rated load. 7. Intel® Xeon Phi™ or non-Intel GPGPU cards may have performance impact during ASHRAE Class 3 and Class 4 ambient air excursions. 8. PCIe* SSD AIC FF devices can only be supported in the bottom add-in card slot on Riser Slot #1 and Riser Slot #2. 9. The Intel® RAID Maintenance Free Backup Unit (AXXRMFBUx) can support a case temperature of up to 45°C with the system operating in normal mode and up to 55°C with the system operating in a fan fail mode. The case temperature of Intel® Smart RAID Battery (AXXRSBBUx) can support up to 45°C in both normal and fan fail mode. Excursions over these specs may result in a reliability impact. 10. The system must be configured with Intel® accessory kits AWTCOPRODUCT and A2UL16RISER2 in order to support Intel® Xeon Phi™ or Non-Intel GPGPU add-in cards with passive cooling solutions. | C2: Base System SKUs: R1304WT/R1208WT | G2: Base System SKUs: R2312WT | K2: Base System SKUs: R2224WT | O2: Base System SKUs: R2308WT R2216WT | S2: Base System SKUs: R2208WT | W2: Base System SKUs: R2308WT R2216WT with AWTCOPRODUCT | AA2: Base System SKUs: R2208WT with duct AWTCOPRODUCT
C3: "●"= Full Support without limitation; "4,5"(Cell with number)=Conditional support with limitation; " "(Blank)=Not support;
A4: ASHRAE (See note 1) | B4: Classifications | C4: 27C | D4: A2 | E4: A3 | F4: A4 | G4: 27C | H4: A2 | I4: A3 | J4: A4 | K4: 27C | L4: A2 | M4: A3 | N4: A4 | O4: 27C | P4: A2 | Q4: A3 | R4: A4 | S4: 27C | T4: A2 | U4: A3 | V4: A4 | W4: 27C | X4: A2 | Y4: A3 | Z4: A4 | AA4: 27C | AB4: A2 | AC4: A3 | AD4: A4
B5: Max Ambient | C5: 27°C(1) | D5: 35°C | E5: 40°C | F5: 45°C | G5: 27°C(1) | H5: 35°C | I5: 40°C | J5: 45°C | K5: 27°C(1) | L5: 35°C | M5: 40°C | N5: 45°C | O5: 27°C(1) | P5: 35°C | Q5: 40°C | R5: 45°C | S5: 27°C(1) | T5: 35°C | U5: 40°C | V5: 45°C | W5: 27°C(1) | X5: 35°C | Y5: 40°C | Z5: 45°C | AA5: 27°C(1) | AB5: 35°C | AC5: 40°C | AD5: 45°C
A6: PS (See note 6) | B6: 1100W AC | C6: ● | D6: ● | E6: ● | F6: ● | G6: ● | H6: ● | I6: ● | J6: ● | K6: ● | L6: ● | M6: ● | N6: ● | O6: ● | P6: ● | Q6: ● | R6: ● | S6: ● | T6: ● | U6: ● | V6: ● | W6: ● | X6: ● | Y6: ● | Z6: ● | AA6: ● | AB6: ● | AC6: ● | AD6: ●
B7: 750W AC | C7: ● | D7: ● | E7: ● | F7: ● | G7: ● | H7: ● | I7: ● | J7: ● | K7: ● | L7: ● | M7: ● | N7: ● | O7: ● | P7: ● | Q7: ● | R7: ● | S7: ● | T7: ● | U7: ● | V7: ● | W7: ● | X7: ● | Y7: ● | Z7: ● | AA7: ● | AB7: ● | AC7: ● | AD7: ●
B8: 750W DC | C8: ● | D8: ● | E8: ● | F8: ● | G8: ● | H8: ● | I8: ● | J8: ● | K8: ● | L8: ● | M8: ● | N8: ● | O8: ● | P8: ● | Q8: ● | R8: ● | S8: ● | T8: ● | U8: ● | V8: ● | W8: ● | X8: ● | Y8: ● | Z8: ● | AA8: ● | AB8: ● | AC8: ● | AD8: ●
A9: EP Processors ( See Notes 3) | B9: EP, 135w, 12C (Intel® Xeon® processor E5-2690 V3) | C9: ● | D9: ● | E9: ● | F9: ● | G9: ● | H9: ● | I9: ● | J9: 3 | K9: ● | L9: ● | M9: ● | N9: 3 | O9: ● | P9: ● | Q9: ● | R9: ● | S9: ● | T9: ● | U9: ● | V9: ● | W9: ● | X9: ● | Y9: 3 | Z9: 3 | AA9: ● | AB9: ● | AC9: ● | AD9: ●
B10: EP, 120w, 12C (Intel® Xeon® processor E5-2680 V3, E5-2670 V3) | C10: ● | D10: ● | E10: ● | F10: ● | G10: ● | H10: ● | I10: ● | J10: 3 | K10: ● | L10: ● | M10: ● | N10: 3 | O10: ● | P10: ● | Q10: ● | R10: ● | S10: ● | T10: ● | U10: ● | V10: ● | W10: ● | X10: ● | Y10: 3 | Z10: 3 | AA10: ● | AB10: ● | AC10: ● | AD10: ●
B11: EP, 105w, 10C (Intel® Xeon® processor E5-2660 V3, E5-2650 V3) | C11: ● | D11: ● | E11: ● | F11: ● | G11: ● | H11: ● | I11: ● | J11: 3 | K11: ● | L11: ● | M11: ● | N11: 3 | O11: ● | P11: ● | Q11: ● | R11: ● | S11: ● | T11: ● | U11: ● | V11: ● | W11: ● | X11: ● | Y11: 3 | Z11: 3 | AA11: ● | AB11: ● | AC11: ● | AD11: ●
B12: EP, 90w, 8C (Intel® Xeon® processor E5-2640 V3) | C12: ● | D12: ● | E12: ● | F12: ● | G12: ● | H12: ● | I12: ● | J12: 3 | K12: ● | L12: ● | M12: ● | N12: 3 | O12: ● | P12: ● | Q12: ● | R12: ● | S12: ● | T12: ● | U12: ● | V12: ● | W12: ● | X12: ● | Y12: 3 | Z12: 3 | AA12: ● | AB12: ● | AC12: ● | AD12: ●
B13: EP, 85w,8C,6C (Intel® Xeon® processor E5-2630 V3, E5-2620 V3, E5-2609 V3, E5-2603 V3) | C13: ● | D13: ● | E13: ● | F13: ● | G13: ● | H13: ● | I13: ● | J13: 3 | K13: ● | L13: ● | M13: ● | N13: 3 | O13: ● | P13: ● | Q13: ● | R13: ● | S13: ● | T13: ● | U13: ● | V13: ● | W13: ● | X13: ● | Y13: 3 | Z13: 3 | AA13: ● | AB13: ● | AC13: ● | AD13: ●
B14: EP, 135w, 8C,6C,4C (Intel® Xeon® processor E5-2667 V3, E5-2643 V3, E5-2637 V3) | C14: ● | D14: ● | E14: 3 | F14: 3 | G14: ● | H14: 3 | K14: ● | L14: 3 | O14: ● | P14: ● | Q14: ● | R14: 3 | S14: ● | T14: ● | U14: ● | V14: ● | W14: ● | X14: 3 | AA14: ● | AB14: ● | AC14: ● | AD14: 3
B15: EP, 105w, 4C (Intel® Xeon® processor E5-2623 V3) | C15: ● | D15: ● | E15: ● | F15: ● | G15: ● | H15: ● | I15: 3 | J15: 3 | K15: ● | L15: ● | M15: ● | N15: 3 | O15: ● | P15: ● | Q15: ● | R15: ● | S15: ● | T15: ● | U15: ● | V15: ● | W15: ● | X15: ● | Y15: 3 | Z15: 3 | AA15: ● | AB15: ● | AC15: ● | AD15: ●
B16: EP, 65w, 12C (Intel® Xeon® processor E5-2650L V3) | C16: ● | D16: ● | E16: ● | F16: 3 | G16: ● | H16: ● | I16: 3 | K16: ● | L16: ● | M16: 3 | O16: ● | P16: ● | Q16: ● | R16: ● | S16: ● | T16: ● | U16: ● | V16: ● | W16: ● | X16: ● | Y16: 3 | AA16: ● | AB16: ● | AC16: ● | AD16: 3
B17: EP, 55w, 8C (Intel® Xeon® processor E5-2630L V3) | C17: ● | D17: ● | E17: ● | F17: 3 | G17: ● | H17: ● | K17: ● | L17: ● | O17: ● | P17: ● | Q17: ● | R17: ● | S17: ● | T17: ● | U17: ● | V17: ● | W17: ● | X17: ● | Y17: 3 | AA17: ● | AB17: ● | AC17: ● | AD17: 3
B18: EP, 145w, 14C,18C (Intel® Xeon® processor E5-2697 V3, E5-2699 V3) | C18: ● | D18: ● | E18: 3 | F18: 3 | G18: ● | H18: 3 | K18: ● | L18: 3 | O18: ● | P18: ● | Q18: 3 | R18: 3 | S18: ● | T18: ● | U18: ● | V18: 3 | W18: ● | X18: 3 | AA18: ● | AB18: ● | AC18: 3 | AD18: 3
B19: EP, 135w, 16C (Intel® Xeon® processor E5-2698 V3) | C19: ● | D19: ● | E19: ● | F19: ● | G19: ● | H19: ● | I19: ● | J19: 3 | K19: ● | L19: ● | M19: ● | N19: 3 | O19: ● | P19: ● | Q19: ● | R19: ● | S19: ● | T19: ● | U19: ● | V19: ● | W19: ● | X19: ● | Y19: 3 | Z19: 3 | AA19: ● | AB19: ● | AC19: ● | AD19: ●
B20: EP, 120w, 14C (Intel® Xeon® processor E5-2695 V3, E5-2683 V3) | C20: ● | D20: ● | E20: ● | F20: ● | G20: ● | H20: ● | I20: ● | J20: 3 | K20: ● | L20: ● | M20: ● | N20: 3 | O20: ● | P20: ● | Q20: ● | R20: ● | S20: ● | T20: ● | U20: ● | V20: ● | W20: ● | X20: ● | Y20: 3 | Z20: 3 | AA20: ● | AB20: ● | AC20: ● | AD20: ●
A21: Memory Type | B21: RDIMM-2Rx8,1Rx4, 1Rx8 | C21: ● | D21: ● | E21: ● | F21: ● | G21: ● | H21: ● | I21: ● | J21: ● | K21: ● | L21: ● | M21: ● | N21: ● | O21: ● | P21: ● | Q21: ● | R21: ● | S21: ● | T21: ● | U21: ● | V21: ● | W21: ● | X21: ● | Y21: ● | Z21: ● | AA21: ● | AB21: ● | AC21: ● | AD21: ●
B22: RDIMM-DRx4 | C22: ● | D22: ● | E22: ● | F22: ● | G22: ● | H22: ● | I22: ● | J22: ● | K22: ● | L22: ● | M22: ● | N22: ● | O22: ● | P22: ● | Q22: ● | R22: ● | S22: ● | T22: ● | U22: ● | V22: ● | W22: ● | X22: ● | Y22: ● | Z22: ● | AA22: ● | AB22: ● | AC22: ● | AD22: ●
B23: LRDIMM-QRx4 DDP | C23: ● | D23: ● | E23: ● | F23: ● | G23: ● | H23: ● | I23: ● | J23: ● | K23: ● | L23: ● | M23: ● | N23: ● | O23: ● | P23: ● | Q23: ● | R23: ● | S23: ● | T23: ● | U23: ● | V23: ● | W23: ● | X23: ● | Y23: ● | Z23: ● | AA23: ● | AB23: ● | AC23: ● | AD23: ●
A24: Add-in Cards (See note 5) | B24: Riser #1 - Bottom Slot (1U riser and 2U riser) | C24: ● | D24: ● | E24: ● | F24: ● | G24: ● | H24: ● | I24: ● | J24: 5 | K24: ● | L24: ● | M24: ● | N24: 5 | O24: ● | P24: ● | Q24: ● | R24: ● | S24: ● | T24: ● | U24: ● | V24: ● | W24: ● | X24: ● | Y24: ● | Z24: ● | AA24: ● | AB24: ● | AC24: ● | AD24: ●
B25: Riser #1 - Middle Slot (2U riser) | G25: ● | H25: ● | I25: 5 | K25: ● | L25: ● | M25: 5 | N25: 5 | O25: ● | P25: ● | Q25: ● | R25: 5 | S25: ● | T25: ● | U25: ● | V25: 5
B26: Riser #1 - Top Slot (2U riser) | G26: ● | H26: ● | I26: 5 | K26: ● | L26: ● | M26: 5 | N26: 5 | O26: ● | P26: ● | Q26: ● | R26: 5 | S26: ● | T26: ● | U26: ● | V26: 5
B27: Riser #2 - Bottom Slot (1U riser and 2U riser) | C27: ● | D27: ● | E27: ● | F27: ● | G27: ● | H27: ● | I27: ● | J27: 5 | K27: ● | L27: ● | M27: ● | N27: 5 | O27: ● | P27: ● | Q27: ● | R27: ● | S27: ● | T27: ● | U27: ● | V27: ● | W27: ● | X27: ● | Y27: ● | Z27: ● | AA27: ● | AB27: ● | AC27: ● | AD27: ●
B28: Riser #2 - Middle Slot (2U riser) | G28: ● | H28: ● | I28: ● | J28: 5 | K28: ● | L28: ● | M28: ● | N28: 5 | O28: ● | P28: ● | Q28: ● | R28: 5 | S28: ● | T28: ● | U28: ● | V28: 5
B29: Riser #2 - Top Slot (2U riser) | G29: ● | H29: ● | I29: ● | J29: 5 | K29: ● | L29: ● | M29: ● | N29: 5 | O29: ● | P29: ● | Q29: ● | R29: 5 | S29: ● | T29: ● | U29: ● | V29: 5
A30: 3rd PCI Riser | B30: Riser #3 - Bottom Slot | G30: ● | H30: ● | I30: 5 | K30: ● | L30: ● | M30: 5 | O30: ● | P30: ● | Q30: ● | R30: 5 | S30: ● | T30: ● | U30: ● | V30: 5 | W30: ● | X30: ● | Y30: ● | Z30: 5 | AA30: ● | AB30: ● | AC30: ● | AD30: 5
B31: Riser #3 - Top Slot | G31: ● | H31: ● | I31: 5 | K31: ● | L31: ● | M31: 5 | O31: ● | P31: ● | Q31: ● | R31: 5 | S31: ● | T31: ● | U31: ● | V31: 5 | W31: ● | X31: ● | Y31: ● | Z31: 5 | AA31: ● | AB31: ● | AC31: ● | AD31: 5
A32: SAS and I/O Modules (See Note 4) | B32: Intel® Integrated RAID Modules (Mezzanine cards) | C32: ● | D32: ● | E32: ● | F32: ● | G32: ● | H32: ● | I32: ● | K32: ● | L32: ● | M32: ● | O32: ● | P32: ● | Q32: ● | R32: ● | S32: ● | T32: ● | U32: ● | V32: ● | W32: ● | X32: ● | Y32: ● | Z32: ● | AA32: ● | AB32: ● | AC32: ● | AD32: ●
B33: AXX10GBTWLIOM - Dual 10GBASE-T IO Module | C33: ● | D33: ● | E33: ● | F33: ● | G33: ● | H33: ● | I33: ● | J33: ● | K33: ● | L33: ● | M33: ● | N33: ● | O33: ● | P33: ● | Q33: ● | R33: ● | S33: ● | T33: ● | U33: ● | V33: ● | W33: ● | X33: ● | Y33: ● | Z33: ● | AA33: ● | AB33: ● | AC33: ● | AD33: ●
B34: AXX10GBNIAIOM - Dual SFP+ port 10GbE IO Module | C34: ● | D34: ● | E34: ● | F34: ● | G34: ● | H34: ● | I34: ● | J34: ● | K34: ● | L34: ● | M34: ● | N34: ● | O34: ● | P34: ● | Q34: ● | R34: ● | S34: ● | T34: ● | U34: ● | V34: ● | W34: ● | X34: ● | Y34: ● | Z34: ● | AA34: ● | AB34: ● | AC34: ● | AD34: ●
B35: AXX1FDRIBIOM - Single Port FDR Infiniband IO Module | C35: ● | D35: ● | E35: ● | F35: ● | G35: ● | H35: ● | I35: ● | J35: ● | K35: ● | L35: ● | M35: ● | N35: ● | O35: ● | P35: ● | Q35: ● | R35: ● | S35: ● | T35: ● | U35: ● | V35: ● | W35: ● | X35: ● | Y35: ● | Z35: ● | AA35: ● | AB35: ● | AC35: ● | AD35: ●
B36: AXX2FDRIBIOM - Dual Port FDR Infiniband IO Module | C36: ● | D36: ● | E36: ● | F36: ● | G36: ● | H36: ● | I36: ● | J36: ● | K36: ● | L36: ● | M36: ● | N36: ● | O36: ● | P36: ● | Q36: ● | R36: ● | S36: ● | T36: ● | U36: ● | V36: ● | W36: ● | X36: ● | Y36: ● | Z36: ● | AA36: ● | AB36: ● | AC36: ● | AD36: ●
B37: AXX4P1GBPWLIOM - Quad Port 1GbE IO Module | C37: ● | D37: ● | E37: ● | F37: ● | G37: ● | H37: ● | I37: ● | J37: ● | K37: ● | L37: ● | M37: ● | N37: ● | O37: ● | P37: ● | Q37: ● | R37: ● | S37: ● | T37: ● | U37: ● | V37: ● | W37: ● | X37: ● | Y37: ● | Z37: ● | AA37: ● | AB37: ● | AC37: ● | AD37: ●
B38: AXX1P40FRTIOM - Single Port 40GbE IO Module | C38: ● | D38: ● | E38: ● | F38: ● | G38: ● | H38: ● | I38: ● | J38: ● | K38: ● | L38: ● | M38: ● | N38: ● | O38: ● | P38: ● | Q38: ● | R38: ● | S38: ● | T38: ● | U38: ● | V38: ● | W38: ● | X38: ● | Y38: ● | Z38: ● | AA38: ● | AB38: ● | AC38: ● | AD38: ●
B39: AXX2P40FRTIOM - Dual Port 40GbE IO Module | C39: ● | D39: ● | E39: ● | F39: ● | G39: ● | H39: ● | I39: ● | J39: ● | K39: ● | L39: ● | M39: ● | N39: ● | O39: ● | P39: ● | Q39: ● | R39: ● | S39: ● | T39: ● | U39: ● | V39: ● | W39: ● | X39: ● | Y39: ● | Z39: ● | AA39: ● | AB39: ● | AC39: ● | AD39: ●
A40: Battery Backup (See note 9) | B40: BBU (rated to 45C) | C40: ● | D40: ● | E40: ● | G40: ● | K40: ● | O40: ● | P40: ● | S40: ● | T40: ● | U40: ● | W40: ● | X40: ● | AA40: ● | AB40: ● | AC40: ●
B41: Supercap (rated to 55C) | C41: ● | D41: ● | E41: ● | G41: ● | H41: ● | K41: ● | L41: ● | O41: ● | P41: ● | S41: ● | T41: ● | U41: ● | W41: ● | X41: ● | AA41: ● | AB41: ● | AC41: ●
B42: Cache Offload Module (rated to 55C) | C42: ● | D42: ● | E42: ● | F42: ● | G42: ● | H42: ● | K42: ● | L42: ● | O42: ● | P42: ● | S42: ● | T42: ● | U42: ● | W42: ● | X42: ● | AA42: ● | AB42: ● | AC42: ●
A43: Internal SSD | B43: Rated to 60C | G43: ● | K43: ● | O43: ● | S43: ● | W43: ● | AA43: ●
B44: Rated to 70C | G44: ● | H44: ● | K44: ● | L44: ● | O44: ● | P44: ● | S44: ● | T44: ● | W44: ● | X44: ● | AA44: ● | AB44: ●
A45: Rear SSD | B45: Rated to 60C | G45: ● | K45: ● | O45: ● | P45: ● | S45: ● | T45: ● | U45: ● | W45: ● | X45: ● | AA45: ● | AB45: ● | AC45: ●
B46: Rated to 70C | G46: ● | H46: ● | K46: ● | L46: ● | M46: ● | O46: ● | P46: ● | Q46: ● | R46: ● | S46: ● | T46: ● | U46: ● | V46: ● | W46: ● | X46: ● | Y46: ● | Z46: ● | AA46: ● | AB46: ● | AC46: ● | AD46: ●
A47: 2.5" SFF NVMe SSD (DC P3700/P3500) | B47: 1600GB/2TB | C47: ● | D47: ● | E47: ● | F47: ● | K47: ● | L47: ● | M47: ● | N47: ● | O47: ● | P47: ● | Q47: ● | R47: ● | S47: ● | T47: ● | U47: ● | V47: ● | W47: ● | X47: ● | Y47: ● | Z47: ● | AA47: ● | AB47: ● | AC47: ● | AD47: ●
B48: 800GB | C48: ● | D48: ● | E48: ● | F48: ● | K48: ● | L48: ● | M48: ● | N48: ● | O48: ● | P48: ● | Q48: ● | R48: ● | S48: ● | T48: ● | U48: ● | V48: ● | W48: ● | X48: ● | Y48: ● | Z48: ● | AA48: ● | AB48: ● | AC48: ● | AD48: ●
B49: 600GB | C49: ● | D49: ● | E49: ● | F49: ● | K49: ● | L49: ● | M49: ● | N49: ● | O49: ● | P49: ● | Q49: ● | R49: ● | S49: ● | T49: ● | U49: ● | V49: ● | W49: ● | X49: ● | Y49: ● | Z49: ● | AA49: ● | AB49: ● | AC49: ● | AD49: ●
B50: 400GB | C50: ● | D50: ● | E50: ● | F50: ● | K50: ● | L50: ● | M50: ● | N50: ● | O50: ● | P50: ● | Q50: ● | R50: ● | S50: ● | T50: ● | U50: ● | V50: ● | W50: ● | X50: ● | Y50: ● | Z50: ● | AA50: ● | AB50: ● | AC50: ● | AD50: ●
B51: 200GB | C51: ● | D51: ● | E51: ● | F51: ● | K51: ● | L51: ● | M51: ● | N51: ● | O51: ● | P51: ● | Q51: ● | R51: ● | S51: ● | T51: ● | U51: ● | V51: ● | W51: ● | X51: ● | Y51: ● | Z51: ● | AA51: ● | AB51: ● | AC51: ● | AD51: ●
A52: PCIe SSD AIC FF (DC P3700/P3500) (See note 8) | B52: 1600GB/2TB | C52: ● | D52: ● | E52: ● | F52: ● | G52: ● | K52: ● | O52: ● | P52: 8 | Q52: 8 | S52: ● | T52: 8 | U52: 8 | V52: 8 | W52: ● | X52: 8 | Y52: 8 | AA52: ● | AB52: 8 | AC52: 8
B53: 800GB | C53: ● | D53: ● | E53: ● | F53: ● | G53: ● | K53: ● | O53: ● | P53: 8 | Q53: 8 | S53: ● | T53: 8 | U53: 8 | V53: 8 | W53: ● | X53: 8 | Y53: 8 | AA53: ● | AB53: 8 | AC53: 8
B54: 600GB | C54: ● | D54: ● | E54: ● | F54: ● | G54: ● | H54: ● | I54: 8 | K54: ● | L54: ● | M54: 8 | O54: ● | P54: ● | Q54: 8 | R54: 8 | S54: ● | T54: ● | U54: 8 | V54: 8 | W54: ● | X54: ● | Y54: 8 | Z54: 8 | AA54: ● | AB54: ● | AC54: 8 | AD54: 8
B55: 400GB | C55: ● | D55: ● | E55: ● | F55: ● | G55: ● | H55: ● | I55: 8 | K55: ● | L55: ● | M55: 8 | O55: ● | P55: ● | Q55: 8 | R55: 8 | S55: ● | T55: ● | U55: 8 | V55: 8 | W55: ● | X55: ● | Y55: 8 | Z55: 8 | AA55: ● | AB55: ● | AC55: 8 | AD55: 8
B56: 200GB | C56: ● | D56: ● | E56: ● | F56: ● | G56: ● | H56: ● | I56: ● | J56: ● | K56: ● | L56: ● | M56: ● | N56: ● | O56: ● | P56: ● | Q56: ● | R56: ● | S56: ● | T56: ● | U56: ● | V56: ● | W56: ● | X56: ● | Y56: ● | Z56: ● | AA56: ● | AB56: ● | AC56: ● | AD56: ●
A57: Intel® Xeon Phi™ (See Note 7, 10 ) | B57: Active Cooling up to 300W | O57: ● | S57: ● | T57: ●
B58: Active Cooling up to 225W | O58: ● | P58: ● | S58: ● | T58: ●
B59: Intel® Xeon Phi™ w/Passive Cooling up to 225W | W59: ● | X59: ● | Y59: ● | Z59: ● | AA59: ● | AB59: ● | AC59: ● | AD59: ●
B60: Intel® Xeon Phi™ w/Passive Cooling up to 245W | W60: ● | X60: ● | AA60: ● | AB60: ● | AC60: ●
B61: Intel® Xeon Phi™ w/Passive Cooling up to 300W | AA61: ● | AB61: ●

Sheet Fan Fail Config
A1: Fan Failure Thermal Config Matrix | N1: =Summary!D15 -> 0.9127272727 | O1: <-- Margin to PS rating
A2: Notes: 1. The 27°C configuration alone is limited to elevations of 900m or less. Altitudes higher than 900m need to be de-rated to ASHRAE Class 2 levels. 2. To support system fan redundancy, the system must be configured with two power supplies to maintain sufficient cooling. Concurrent system and power supply fan failures is not supported. 3. Processor throttling may occur which may impact system performance. CPU reliability is not impacted. 4. In fan fail mode, Intel® I/O Modules AXX10GBTWLIOM and AXX2FDRIBIOM are only supported in the specified base system model configured with 120W processors and DRx4 memory. 5. Use of the designated PCIe* slot is limited to add-in cards that have air flow requirements of 100 LFM or less. See add-in card specs for air flow requirements. 6. For ASHRAE Class 3 and Class 4 support, the following power supply margining is required to meet thermal specifications: a) For dual power supply configurations, the power budget must fit within a single power supply rated load and be installed in a dual configuration, or b) For single power supply configurations, the power budget must be sized with 30% margin to single power supply rated load. 7. Intel® Xeon Phi™ or non-Intel GPGPU cards may have performance impact during ASHRAE Class 3 and Class 4 ambient air excursions. 8. PCIe* SSD AIC FF devices can only be supported in the bottom add-in card slot on Riser Slot #1 and Riser Slot #2. 9. The Intel® RAID Maintenance Free Backup Unit (AXXRMFBUx) can support a case temperature of up to 45°C with the system operating in normal mode and up to 55°C with the system operating in a fan fail mode. The case temperature of Intel® Smart RAID Battery (AXXRSBBUx) can support up to 45°C in both normal and fan fail mode. Excursions over these specs may result in a reliability impact. 10. The system must be configured with Intel® accessory kits AWTCOPRODUCT and A2UL16RISER2 in order to support Intel® Xeon Phi™ or Non-Intel GPGPU add-in cards with passive cooling solutions. | C2: Base System SKUs: R1304WT/R1208WT | G2: Base System SKUs: R2312WT | K2: Base System SKUs: R2224WT | O2: Base System SKUs: R2308WT R2216WT | S2: Base System SKUs: R2208WT | W2: Base System SKUs: R2308WT R2216WT with AWTCOPRODUCT | AA2: Base System SKUs: R2208WT with duct AWTCOPRODUCT
C3: "●"= Full Support without limitation; "4,5"(Cell with number)=Conditional support with limitation; " "(Blank)=Not support;
A4: ASHRAE (See note 1) | B4: Classifications | C4: 27C | D4: A2 | E4: A3 | F4: A4 | G4: 27C | H4: A2 | I4: A3 | J4: A4 | K4: 27C | L4: A2 | M4: A3 | N4: A4 | O4: 27C | P4: A2 | Q4: A3 | R4: A4 | S4: 27C | T4: A2 | U4: A3 | V4: A4 | W4: 27C | X4: A2 | Y4: A3 | Z4: A4 | AA4: 27C | AB4: A2 | AC4: A3 | AD4: A4
B5: Max Ambient | C5: 27°C(1) | D5: 35°C | E5: 40°C | F5: 45°C | G5: 27°C(1) | H5: 35°C | I5: 40°C | J5: 45°C | K5: 27°C(1) | L5: 35°C | M5: 40°C | N5: 45°C | O5: 27°C(1) | P5: 35°C | Q5: 40°C | R5: 45°C | S5: 27°C(1) | T5: 35°C | U5: 40°C | V5: 45°C | W5: 27°C(1) | X5: 35°C | Y5: 40°C | Z5: 45°C | AA5: 27°C(1) | AB5: 35°C | AC5: 40°C | AD5: 45°C
A6: PS (See note 6) | B6: 1100W AC | C6: 2 | D6: 2 | G6: 2 | H6: 2 | K6: 2 | L6: 2 | O6: 2 | P6: 2 | S6: 2 | T6: 2 | W6: 2 | X6: 2 | AA6: 2 | AB6: 2
B7: 750W AC | C7: 2 | D7: 2 | G7: 2 | H7: 2 | K7: 2 | L7: 2 | O7: 2 | P7: 2 | S7: 2 | T7: 2 | W7: 2 | X7: 2 | AA7: 2 | AB7: 2
B8: 750W DC | C8: 2 | D8: 2 | G8: 2 | H8: 2 | K8: 2 | L8: 2 | O8: 2 | P8: 2 | S8: 2 | T8: 2 | W8: 2 | X8: 2 | AA8: 2 | AB8: 2
A9: EP Processors ( See Notes 3) | B9: EP, 135w, 12C (Intel® Xeon® processor E5-2690 V3) | C9: ● | D9: ● | G9: ● | H9: 3 | K9: ● | L9: ● | O9: ● | P9: ● | S9: ● | T9: ● | W9: 3 | AA9: 3 | AB9: 3
B10: EP, 120w, 12C (Intel® Xeon® processor E5-2680 V3, E5-2670 V3) | C10: ● | D10: ● | G10: ● | H10: 3 | K10: ● | L10: ● | O10: ● | P10: ● | S10: ● | T10: ● | W10: 3 | AA10: 3 | AB10: 3
B11: EP, 105w, 10C (Intel® Xeon® processor E5-2660 V3, E5-2650 V3) | C11: ● | D11: ● | G11: ● | H11: 3 | K11: ● | L11: ● | O11: ● | P11: ● | S11: ● | T11: ● | W11: 3 | AA11: ● | AB11: 3
B12: EP, 90w, 8C (Intel® Xeon® processor E5-2640 V3) | C12: ● | D12: ● | G12: ● | H12: 3 | K12: ● | L12: ● | O12: ● | P12: ● | S12: ● | T12: ● | W12: 3 | AA12: ● | AB12: 3
B13: EP, 85w,8C,6C (Intel® Xeon® processor E5-2630 V3, E5-2620 V3, E5-2609 V3, E5-2603 V3) | C13: ● | D13: ● | G13: ● | H13: 3 | K13: ● | L13: ● | O13: ● | P13: ● | S13: ● | T13: ● | W13: 3 | AA13: ● | AB13: 3
B14: EP, 135w, 8C,6C,4C (Intel® Xeon® processor E5-2667 V3, E5-2643 V3, E5-2637 V3) | C14: 3 | D14: 3 | G14: 3 | K14: 3 | O14: ● | P14: 3 | S14: ● | T14: ●
B15: EP, 105w, 4C (Intel® Xeon® processor E5-2623 V3) | C15: ● | D15: ● | G15: ● | H15: 3 | K15: ● | L15: 3 | O15: ● | P15: ● | S15: ● | T15: ● | W15: 3 | AA15: ● | AB15: 3
B16: EP, 65w, 12C (Intel® Xeon® processor E5-2650L V3) | C16: ● | D16: ● | G16: ● | K16: ● | L16: 3 | O16: ● | P16: ● | S16: ● | T16: ● | W16: 3 | AA16: ● | AB16: 3
B17: EP, 55w, 8C (Intel® Xeon® processor E5-2630L V3) | C17: ● | D17: ● | G17: ● | K17: ● | L17: 3 | O17: ● | P17: ● | S17: ● | T17: ● | AA17: ● | AB17: 3
B18: EP, 145w, 14C,18C (Intel® Xeon® processor E5-2697 V3, E5-2699 V3) | C18: 3 | D18: 3 | G18: 3 | K18: 3 | O18: ● | P18: 3 | S18: ● | T18: ●
B19: EP, 135w, 16C (Intel® Xeon® processor E5-2698 V3) | C19: ● | D19: ● | G19: ● | K19: ● | L19: ● | O19: ● | P19: ● | S19: ● | T19: ● | W19: 3 | AA19: 3 | AB19: 3
B20: EP, 120w, 14C (Intel® Xeon® processor E5-2695 V3, E5-2683 V3) | C20: ● | D20: ● | G20: ● | K20: ● | L20: ● | O20: ● | P20: ● | S20: ● | T20: ● | W20: 3 | AA20: 3 | AB20: 3
A21: Memory Type | B21: RDIMM-2Rx8,1Rx4 | C21: ● | D21: ● | G21: ● | H21: ● | K21: ● | L21: ● | O21: ● | P21: ● | S21: ● | T21: ● | W21: ● | X21: ● | AA21: ● | AB21: ●
B22: RDIMM-DRx4 | C22: ● | D22: ● | G22: ● | H22: ● | K22: ● | L22: ● | O22: ● | P22: ● | S22: ● | T22: ● | W22: ● | X22: ● | AA22: ● | AB22: ●
B23: LRDIMM-QRx4 DDP | C23: ● | D23: ● | G23: ● | H23: ● | K23: ● | L23: ● | O23: ● | P23: ● | S23: ● | T23: ● | W23: ● | X23: ● | AA23: ● | AB23: ●
A24: Add-in Cards (See note 5) | B24: Riser #1 - Bottom Slot (1U riser and 2U riser) | C24: ● | D24: ● | G24: ● | H24: ● | K24: ● | L24: ● | O24: ● | P24: ● | S24: ● | T24: ● | W24: ● | X24: ● | AA24: ● | AB24: ●
B25: Riser #1 - Middle Slot (2U riser) | G25: ● | H25: 5 | K25: ● | L25: 5 | O25: ● | P25: ● | S25: ● | T25: ●
B26: Riser #1 - Top Slot (2U riser) | G26: ● | H26: 5 | K26: ● | L26: 5 | O26: ● | P26: ● | S26: ● | T26: ●
B27: Riser #2 - Bottom Slot (1U riser and 2U riser) | C27: ● | D27: ● | G27: ● | H27: ● | K27: ● | L27: ● | O27: ● | P27: ● | S27: ● | T27: ● | W27: ● | X27: ● | AA27: ● | AB27: ●
B28: Riser #2 - Middle Slot (2U riser) | G28: ● | H28: 5 | K28: ● | L28: ● | O28: ● | P28: ● | S28: ● | T28: ●
B29: Riser #2 - Top Slot (2U riser) | G29: ● | H29: 5 | K29: ● | L29: ● | O29: ● | P29: ● | S29: ● | T29: ●
A30: 3rd PCI Riser | B30: Riser #3 - Bottom Slot | G30: ● | H30: 5 | K30: ● | L30: 5 | O30: ● | P30: ● | S30: ● | T30: ● | W30: ● | X30: ● | AA30: ● | AB30: ●
B31: Riser #3 - Top Slot | G31: ● | H31: 5 | K31: ● | L31: 5 | O31: ● | P31: ● | S31: ● | T31: ● | W31: ● | X31: ● | AA31: ● | AB31: ●
A32: SAS and I/O Modules (See Note 4) | B32: Intel® Integrated RAID Modules (Mezzanine cards) | C32: ● | D32: ● | G32: ● | H32: ● | K32: ● | L32: ● | O32: ● | P32: ● | S32: ● | T32: ● | W32: ● | X32: ● | AA32: ● | AB32: ●
B33: AXX10GBTWLIOM - Dual 10GBASE-T IO Module | C33: ● | D33: ● | G33: ● | H33: 4 | K33: ● | L33: 4 | O33: ● | P33: ● | S33: ● | T33: ● | W33: ● | X33: ● | AA33: ● | AB33: ●
B34: AXX10GBNIAIOM - Dual SFP+ port 10GbE IO Module | C34: ● | D34: ● | G34: ● | H34: ● | L34: ● | O34: ● | P34: ● | S34: ● | T34: ● | W34: ● | X34: ● | AA34: ● | AB34: ●
B35: AXX1FDRIBIOM - Single Port FDR Infiniband IO Module | C35: ● | D35: ● | G35: ● | H35: ● | K35: ● | L35: ● | O35: ● | P35: ● | S35: ● | T35: ● | W35: ● | X35: ● | AA35: ● | AB35: ●
B36: AXX2FDRIBIOM - Dual Port FDR Infiniband IO Module | C36: ● | D36: ● | G36: ● | H36: 4 | K36: ● | L36: 4 | O36: ● | P36: ● | S36: ● | T36: ● | W36: ● | X36: ● | AA36: ● | AB36: ●
B37: AXX4P1GBPWLIOM - Quad Port 1GbE IO Module | C37: ● | D37: ● | G37: ● | H37: ● | K37: ● | L37: ● | O37: ● | P37: ● | S37: ● | T37: ● | W37: ● | X37: ● | AA37: ● | AB37: ●
B38: AXX1P40FRTIOM - Single Port 40GbE IO Module | C38: ● | D38: ● | G38: ● | H38: ● | K38: ● | L38: ● | O38: ● | P38: ● | S38: ● | T38: ● | W38: ● | X38: ● | AA38: ● | AB38: ●
B39: AXX2P40FRTIOM - Dual Port 40GbE IO Module | C39: ● | D39: ● | G39: ● | H39: ● | K39: ● | L39: ● | O39: ● | P39: ● | S39: ● | T39: ● | W39: ● | X39: ● | AA39: ● | AB39: ●
A40: Battery Backup (See note 9) | B40: BBU (rated to 45C) | C40: ● | D40: ● | K40: ● | O40: ● | P40: ● | S40: ● | T40: ● | W40: ● | X40: ● | AA40: ● | AB40: ●
B41: Supercap (rated to 55C) | C41: ● | D41: ● | G41: ● | K41: ● | L41: ● | O41: ● | P41: ● | S41: ● | T41: ● | W41: ● | X41: ● | AA41: ● | AB41: ●
B42: Cache Offload Module (rated to 55C) | C42: ● | D42: ● | G42: ● | K42: ● | L42: ● | O42: ● | P42: ● | S42: ● | T42: ● | W42: ● | X42: ● | AA42: ● | AB42: ●
A43: Internal SSD | B43: Rated to 60C | G43: ● | K43: ● | O43: ● | S43: ● | W43: ● | AA43: ●
B44: Rated to 70C | G44: ● | H44: ● | K44: ● | L44: ● | O44: ● | P44: ● | S44: ● | T44: ● | W44: ● | X44: ● | AA44: ● | AB44: ●
A45: Rear SSD | B45: Rated to 60C | G45: ● | K45: ● | O45: ● | P45: ● | S45: ● | T45: ● | W45: ● | X45: ● | AA45: ● | AB45: ●
B46: Rated to 70C | G46: ● | H46: ● | K46: ● | L46: ● | O46: ● | P46: ● | S46: ● | T46: ● | W46: ● | X46: ● | AA46: ● | AB46: ●
A47: 2.5" SFF NVMe SSD (DC P3700/P3500) | B47: 1600GB/2TB | C47: ● | D47: ● | K47: ● | L47: ● | O47: ● | P47: ● | S47: ● | T47: ● | W47: ● | X47: ● | AA47: ● | AB47: ●
B48: 800GB | C48: ● | D48: ● | K48: ● | L48: ● | O48: ● | P48: ● | S48: ● | T48: ● | W48: ● | X48: ● | AA48: ● | AB48: ●
B49: 600GB | C49: ● | D49: ● | K49: ● | L49: ● | O49: ● | P49: ● | S49: ● | T49: ● | W49: ● | X49: ● | AA49: ● | AB49: ●
B50: 400GB | C50: ● | D50: ● | K50: ● | L50: ● | O50: ● | P50: ● | S50: ● | T50: ● | W50: ● | X50: ● | AA50: ● | AB50: ●
B51: 200GB | C51: ● | D51: ● | K51: ● | L51: ● | O51: ● | P51: ● | S51: ● | T51: ● | W51: ● | X51: ● | AA51: ● | AB51: ●
A52: PCIe SSD AIC FF (DC P3700/P3500) (See note 8) | B52: 1600GB/2TB | C52: ● | D52: ● | O52: 8 | P52: 8 | S52: 8 | T52: 8 | W52: 8 | X52: 8 | AA52: 8 | AB52: 8
B53: 800GB | C53: ● | D53: ● | O53: 8 | P53: 8 | S53: 8 | T53: 8 | W53: 8 | X53: 8 | AA53: 8 | AB53: 8
B54: 600GB | C54: ● | D54: ● | G54: ● | H54: 8 | K54: ● | L54: 8 | O54: ● | P54: ● | S54: ● | T54: ● | W54: ● | X54: ● | AA54: ● | AB54: ●
B55: 400GB | C55: ● | D55: ● | G55: ● | H55: 8 | K55: ● | L55: 8 | O55: ● | P55: ● | S55: ● | T55: ● | W55: ● | X55: ● | AA55: ● | AB55: ●
B56: 200GB | C56: ● | D56: ● | G56: ● | H56: ● | K56: ● | L56: ● | O56: ● | P56: ● | S56: ● | T56: ● | W56: ● | X56: ● | AA56: ● | AB56: ●
A57: Intel® Xeon Phi™ (See Note 7, 10 ) | B57: Active Cooling up to 300W | O57: ● | S57: ●
B58: Active Cooling up to 225W | O58: ● | P58: ● | S58: ● | T58: ●
B59: Intel® Xeon Phi™ w/Passive Cooling up to 225W | W59: ● | X59: ● | AA59: ● | AB59: ●
B60: Intel® Xeon Phi™ w/Passive Cooling up to 245W | W60: ● | AA60: ●
B61: Intel® Xeon Phi™ w/Passive Cooling up to 300W | AA61: ●

Sheet Summary
A1: Power Budget | B1: =CONCATENATE(INDEX(Chassis!$L$3:$L$13,'Intel Chassis'!$B3)," / ",INDEX(Serverboard!A$2:A$13,'Serverboard Config'!$B5) ) -> R2XXX / (Select Serverboard)
A2: Chassis/ Power Supply / Cooling: | B2: =INDEX(Chassis!A$3:A$13,'Intel Chassis'!$B3) -> R2XXX (2U 1100W AC PSU)
A3: Serverboard: | B3: =INDEX(Serverboard!A$2:A$13,'Serverboard Config'!$B5) -> (Select Serverboard)
A4: System Totals | B4: +12V (amps) | C4: 12VSB (amps) | D4: Total System Watts
A5: =CONCATENATE("Processors - Qty ",'Serverboard Config'!C4, ":") -> Processors - Qty 1: | B5: =SUM('Serverboard Config'!F3) -> 0 | C5: =SUM('Serverboard Config'!G3) -> 0 | D5: =SUM('Serverboard Config'!H3) -> 0
A6: =CONCATENATE("Modules + PCI Cards - Qty ",('Serverboard Config'!B7>1) + ('Serverboard Config'!B8>1) + ('Serverboard Config'!B9>1) + ('Serverboard Config'!B10>1) +('Serverboard Config'!B11>1)+('Serverboard Config'!B12>1)+('Serverboard Config'!B13>1)+('Serverboard Config'!B14>1)+('Serverboard Config'!B16>1)+('Serverboard Config'!B17>1),":") -> Modules + PCI Cards - Qty 0: | B6: =SUM('Serverboard Config'!F7:F17) -> 0 | C6: =SUM('Serverboard Config'!G7:G17) -> 0 | D6: =SUM('Serverboard Config'!H7:H17) -> 0
A7: =CONCATENATE("HDD/SSD - Qty ",'Intel Chassis'!C4+'Intel Chassis'!C5+'Intel Chassis'!C6,":") -> HDD/SSD - Qty 0: | B7: =SUM('Intel Chassis'!G4:G6) -> 0 | C7: 0 | D7: =SUM('Intel Chassis'!I4:I6) -> 0
A8: Serverboard & Memory: | B8: =SUM('Serverboard Config'!F5:F6) -> 0 | C8: =SUM('Serverboard Config'!G5:G6) -> 0 | D8: =SUM('Serverboard Config'!H5:H6) -> 0
A9: Chassis & Peripherals: | B9: =_Sys12 - B7 -> 8 | C9: ='Intel Chassis'!H15 -> 0 | D9: =3.3*Sys3.3+5*_Sys5+ 12*_Sys12-D7 -> 96
A10: System Totals: | B10: =SUM(B5:B9) -> 8 | C10: =SUM(C5:C9) -> 0 | D10: =SUM(D5:D9) -> 96
A11: =TEXT(INDEX(Summary!H19:H22,Summary!B19),"###") & TEXT(INDEX(Summary!I19:I22,Summary!B19),"###") &" PS DC Output Limits:" -> 220VAC PS DC Output Limits: | B11: =INDEX(Chassis!B$3:B$13,'Intel Chassis'!$B3) -> 92 | C11: =INDEX(Chassis!C$3:C$13,'Intel Chassis'!$B3) -> 2.1 | D11: =INDEX(Chassis!D$3:D$13,'Intel Chassis'!$B3) -> 1100 | E11: <-- These limits may change based on inlet voltage
A12: CLST Allowance | B12: ='Serverboard Config'!F22 -> 0 | D12: ='Serverboard Config'!H22 -> 0
A13: Total System Limits | B13: =B12+PS1_12 -> 92 | C13: =C12+PS1_5VSB -> 2.1 | D13: =D12+ps1CombLim -> 1100
A14: Margins to Limit: | B14: =B13-B10 -> 84 | C14: =C13-C10 -> 2.1 | D14: =D13-PowerTotal -> 1004 | E14: =IF((OR(B14<0,C14<0)),"<-- Limits Exceeded!","<--System Margins") -> <--System Margins
A15: Negative margins show configuration exceeds a specified limit. | D15: =(D11-D10)/D11 -> 0.9127272727 | E15: <-- % margin to PS rating
A18: AC inlet power estimate (below)
A19: Input Voltage: | B19: 1 | C19: (Volts) | H19: 220 | I19: VAC
A20: Estimated Inlet Power: | B20: =IF(INDEX(Chassis!$H$3:$K$13,'Intel Chassis'!$B3,B19)="na","na",PowerTotal/ (INDEX(Chassis!$H$3:$K$13,'Intel Chassis'!$B3,B19)+0.001)) -> 102.0191286 | C20: (Watts) | D20: Calculation is blank if voltage does not match PS type | H20: 115 | I20: VAC
A21: Estimated Inlet Current: | B21: =IF(B20="na","na",B20/ABS(INDEX(H19:H22,B19))) -> 0.4637233118 | C21: (Amps) | D21: Calculation is blank if voltage does not match PS type | H21: -48 | I21: VDC
A22: Estimated Thermal Dissipation: | B22: =IF(B20="na","na",B20*3.41) -> 347.8852285 | C22: (BTU/Hr) | D22: Calculation is blank if voltage does not match PS type | H22: -60 | I22: VDC
A23: Note: Estimates are most accurate at max loading.
A26: If your desired configuration exceeds the power supply limits, two power supplies are required. The two power supplies will operate in a current sharing mode
A27: to deliver the additional power needed for your configuration. Furthermore, the two power supplies may need to be sourced from separate AC circuits in order to not
A28: exceed maximum AC outlet current. Exceeding maximum AC outlet current may cause a circuit breaker to trip.
A30: For A3/A4 individual PS selection
A31: 1) For dual power supply configuration, power budget must fit within single power supply rated load and be installed in dual configuration, or
A32: 2) For single power supply configuration, power budget must be sized with 30% margin to single power supply rated load.
A34: =CONCATENATE("Revision: ",Revision!B1) -> Revision: 1.1 | B34: =Revision!A1 -> 2014-10-01

Sheet Intel Chassis
A1: Power Budget | B1: =CONCATENATE(INDEX(Chassis!$L$3:$L$13,B3), " System Configuration") -> R2XXX System Configuration | K1: HSBP VRM Efficiency
A2: System Feature | B2: Description | C2: Qty | E2: +3.3V (amps) | F2: +5V (amps) | G2: +12V (amps) | H2: 12V stby (amps) | I2: Power (watts) | K2: =INDEX(Chassis!$G$3:$G$13,B3) -> 0.9
A3: Chassis: | B3: 6 | G3: =INDEX(Chassis!$E$3:$E$13,B3)+IF(INDEX(Chassis!$F$3:$F$13,B3)="Y",(INDEX(Processors!C2:C28,'Serverboard Config'!B3)*'Serverboard Config'!C4),0) -> 8 | I3: =G3*12+H3*12 -> 96
A4: 1st HDD/SSD Type: | B4: 1 | C4: 0 | F4: =INDEX(HardDrive!$C$2:$C$19,B4) *C4 * 1 -> 0 | G4: =(INDEX(HardDrive!$D$2:$D$19,B4)*C4+((F4*5)/12)/$K$2) *1 -> 0 | I4: 0 | J4: =IF($C$4+$C$5+$C$6>(INDEX(HardDrive!$F$22:$F$36*$C$7,'Intel Chassis'!$B$7))+(INDEX(HardDrive!$F$22:$F$36*$C$8, $B$8))+(INDEX(HardDrive!$F22:$F$36*$C$9, $B$9))," <-- Max Supported HDD Count Exceeded!"," ") -> 
A5: 2nd HDD/SSD Type: | B5: 1 | C5: 0 | F5: =INDEX(HardDrive!$C$2:$C$19,B5) *C5 *1 -> 0 | G5: =(INDEX(HardDrive!$D$2:$D$19,B5) *C5+((F5*5)/12)/$K$2) *1 -> 0 | I5: 0 | J5: =IF($C$4+$C$5+$C$6>(INDEX(HardDrive!$F$22:$F$36*$C$7,'Intel Chassis'!$B$7))+(INDEX(HardDrive!$F$22:$F$36*$C$8, $B$8))+(INDEX(HardDrive!$F23:$F$36*$C$9, $B$9))," <-- Max Supported HDD Count Exceeded!"," ") -> 
A6: 3rd HDD/SSD Type: | B6: 1 | C6: 0 | F6: =INDEX(HardDrive!$C$2:$C$19,B6) *C6 *1 -> 0 | G6: =(INDEX(HardDrive!$D$2:$D$19,B6) *C6+((F6*5)/12)/$K$2) *1 -> 0 | I6: 0 | J6: =IF($C$4+$C$5+$C$6>(INDEX(HardDrive!$F$22:$F$36*$C$7,'Intel Chassis'!$B$7))+(INDEX(HardDrive!$F$22:$F$36*$C$8, $B$8))+(INDEX(HardDrive!$F24:$F$36*$C$9, $B$9))," <-- Max Supported HDD Count Exceeded!"," ") -> 
A7: 1st Backplane Type: | B7: 1 | C7: 0 | G7: =(INDEX(HardDrive!$D$22:$D$36,B7) *C7+((F7*5)/12)/$K$2) *1 -> 0 | I7: 0
A8: 2nd Backplane Type: | B8: 1 | C8: 0 | G8: =(INDEX(HardDrive!$D$22:$D$36,B8) *C8+((F8*5)/12)/$K$2) *1 -> 0 | I8: =G8*12+H8*12 -> 0
A9: Rear Backplane: | B9: 1 | C9: 0 | G9: =(INDEX(HardDrive!$B$39:$B$41,B9) *C9+((F9*5)/12)/$K$2) *1 -> 0 | I9: =G9*12+H9*12 -> 0
A10: Midplane Expander: | B10: 1 | C10: 1 | G10: =(INDEX(Peripherals!$D$19:$D$24,B10) *C10) *1 -> 0 | I10: 0
A11: USB: | B11: Number of Devices (100mA/device) | C11: 0 | F11: =0.1*C11 -> 0 | G11: =((F11*5)/12)/_5vVRM -> 0 | I11: 0
A12: USB 3.0: | B12: Number of Devices (150mA/device) | C12: 0 | F12: =0.15*C12 -> 0 | G12: =((F12*5)/12)/_5vVRM -> 0 | I12: =G12*12+H12*12 -> 0
A13: Display: | B13: Optional LCP | C13: 0 | H13: =(0.171*3.3)/12/_stbyVRM*C13 -> 0 | I13: 0
A14: Slim-line Bay: | B14: 1 | C14: 1 | F14: =INDEX(Peripherals!C$3:C$9,$B14) *C14 -> 0 | G14: =(INDEX(Peripherals!$D$3:$D$9,B14)*C14+((F14*5)/12)/_5vVRM) *1 -> 0 | I14: 0
E15: =SUM(E3:E14) -> 0 | G15: =SUM(G3:G14) -> 8 | H15: =SUM(H3:H14) -> 0 | I15: =E15*3.3+F15*5+G15*12 -> 96
B16: SubTotal Chassis Power (Watts): | G16: =G15*12 -> 96 | H16: =H15*5 -> 0 | I16: =SUM(E16:G16) -> 96
B17: Total System usage: | G17: =Summary!B10 -> 8 | H17: =Summary!C10 -> 0 | I17: =Summary!D10 -> 96
B18: =TEXT(INDEX(Summary!H19:H22,Summary!B19),"###") & TEXT(INDEX(Summary!I19:I22,Summary!B19),"###") &" PS DC Output Limits:" -> 220VAC PS DC Output Limits: | G18: =PS1_12 -> 92 | H18: =PS1_5VSB -> 2.1 | I18: =ps1CombLim -> 1100 | J18: <-- These limits may change based on inlet voltage
B19: CLST Allowance: | G19: ='Serverboard Config'!F22 -> 0 | I19: ='Serverboard Config'!H22 -> 0
B20: Total System Limits: | G20: ='Serverboard Config'!F23 -> 92 | H20: =H18 -> 2.1 | I20: ='Serverboard Config'!H23 -> 1100
B21: Margins compared to Limits: | G21: =G20-G17 -> 84 | H21: 2.1 | I21: =I20-I17 -> 1004 | J21: =IF(OR(G21<0,H21<0,I21<0),"<-- Limits Exceeded!","<--System Margins") -> <--System Margins
I22: =(I18-I17)/I18 -> 0.9127272727 | J22: <-- % margin to PS rating

Sheet Serverboard Config
A1: Power Budget | B1: =CONCATENATE(INDEX(Serverboard!A$2:A$13,$B5)," Configuration") -> (Select Serverboard) Configuration | J1: CPU VRM Efficiency | K1: Mem VR Efficiency | L1: 3.3v VRM Efficiency | M1: 5v VRM Efficiency | N1: 3.3 Stby VR Efficiency
A2: Serverboard Feature | B2: Description | D2: +3.3V (amps) | E2: +5V (amps) | F2: +12V (amps) | G2: 12V stby (amps) | H2: Power (watts) | J2: =INDEX(Serverboard!E$2:E$11,$B5) -> 1 | K2: =INDEX(Serverboard!F$2:F$11,$B5) -> 0 | L2: =INDEX(Serverboard!G$2:G$11,$B5) -> 1 | M2: =INDEX(Serverboard!H$2:H$11,$B5) -> 1 | N2: =INDEX(Serverboard!I$2:I$11,$B5) -> 1 | O2: <--Hide these columns
A3: Processors: | B3: 1 | F3: =C4*INDEX(Processors!B$2:B$28,$B3)/12/VRMefficiency*0.9 -> 0 | H3: =F3*12+E3*5 -> 0
B4: Quantity: | C4: 1
A5: Serverboard: | B5: 1 | F5: =INDEX(Serverboard!B$2:B$13,$B5) *1 -> 0 | G5: =INDEX(Serverboard!C$2:C$13,$B5) *1 -> 0 | H5: =INDEX(Serverboard!D$2:D$13,$B5) *1 -> 0
A6: Memory: | B6: 1 | C6: 1 | F6: =IF(C6=1,0,((HLOOKUP(INDEX(Memory!A31:A41,$C6),Memory!B5:I21,B6+2,FALSE))/12/_MemVR*0.9)) -> 0 | H6: =D6*3.3+E6*5+F6*12+G6*12 -> 0 | I6: =IF(C6=1,"",IF(HLOOKUP(INDEX(Memory!A31:A41,$C6),Memory!B5:I21,B6+2,FALSE)="na","<-- unsupported DIMM config","")) -> 
A7: PCI Card #1: | B7: 1 | D7: =INDEX(PCI!B$3:B$22,$B7) -> 0 | E7: =INDEX(PCI!C$3:C$22,$B7) -> 0 | F7: =INDEX(PCI!D$3:D$22,$B7)+((D7*3.3)/12)/$L$2+((E7*5)/12)/$M$2 -> 0 | G7: =((INDEX(PCI!$E$3:$E$22,$B7)*3.3)+(INDEX(PCI!$F$3:$F$22,$B7))*5)/12/_stbyVRM -> 0 | H7: =F7*12+G7*12 -> 0
A8: PCI Card #2: | B8: 1 | D8: =INDEX(PCI!B$3:B$22,$B8) -> 0 | E8: =INDEX(PCI!C$3:C$22,$B8) -> 0 | F8: =INDEX(PCI!D$3:D$22,$B8)+((D8*3.3)/12)/$L$2+((E8*5)/12)/$M$2 -> 0 | G8: =((INDEX(PCI!$E$3:$E$22,$B8)*3.3)+(INDEX(PCI!$F$3:$F$22,$B8))*5)/12/_stbyVRM -> 0 | H8: 0
A9: PCI Card #3: | B9: 1 | D9: =INDEX(PCI!B$3:B$22,$B9) -> 0 | E9: =INDEX(PCI!C$3:C$22,$B9) -> 0 | F9: =INDEX(PCI!D$3:D$22,$B9)+((D9*3.3)/12)/$L$2+((E9*5)/12)/$M$2 -> 0 | G9: =((INDEX(PCI!$E$3:$E$22,$B9)*3.3)+(INDEX(PCI!$F$3:$F$22,$B9))*5)/12/_stbyVRM -> 0 | H9: 0
A10: PCI Card #4: | B10: 1 | D10: =INDEX(PCI!B$3:B$22,$B10) -> 0 | E10: =INDEX(PCI!C$3:C$22,$B10) -> 0 | F10: =INDEX(PCI!D$3:D$22,$B10)+((D10*3.3)/12)/$L$2+((E10*5)/12)/$M$2 -> 0 | G10: =((INDEX(PCI!$E$3:$E$22,$B10)*3.3)+(INDEX(PCI!$F$3:$F$22,$B10))*5)/12/_stbyVRM -> 0 | H10: 0
A11: PCI Card #5: | B11: 1 | D11: =INDEX(PCI!B$3:B$22,$B11) -> 0 | E11: =INDEX(PCI!C$3:C$22,$B11) -> 0 | F11: =INDEX(PCI!D$3:D$22,$B11)+((D11*3.3)/12)/$L$2+((E11*5)/12)/$M$2 -> 0 | G11: =((INDEX(PCI!$E$3:$E$22,$B11)*3.3)+(INDEX(PCI!$F$3:$F$22,$B11))*5)/12/_stbyVRM -> 0 | H11: 0
A12: PCI Card #6: | B12: 1 | D12: =INDEX(PCI!B$3:B$22,$B12) -> 0 | E12: =INDEX(PCI!C$3:C$22,$B12) -> 0 | F12: =INDEX(PCI!D$3:D$22,$B12)+((D12*3.3)/12)/$L$2+((E12*5)/12)/$M$2 -> 0 | G12: =((INDEX(PCI!$E$3:$E$22,$B12)*3.3)+(INDEX(PCI!$F$3:$F$22,$B12))*5)/12/_stbyVRM -> 0 | H12: 0
A13: LP PCI Card #7: | B13: 1 | D13: =INDEX(PCI!B$3:B$22,$B13) -> 0 | E13: =INDEX(PCI!C$3:C$22,$B13) -> 0 | F13: =INDEX(PCI!D$3:D$22,$B13)+((D13*3.3)/12)/$L$2+((E13*5)/12)/$M$2 -> 0 | G13: =((INDEX(PCI!$E$3:$E$22,$B13)*3.3)+(INDEX(PCI!$F$3:$F$22,$B13))*5)/12/_stbyVRM -> 0 | H13: =F13*12+G13*12 -> 0
A14: LP PCI Card #8: | B14: 1 | D14: =INDEX(PCI!B$3:B$22,$B14) -> 0 | E14: =INDEX(PCI!C$3:C$22,$B14) -> 0 | F14: =INDEX(PCI!D$3:D$22,$B14)+((D14*3.3)/12)/$L$2+((E14*5)/12)/$M$2 -> 0 | G14: =((INDEX(PCI!$E$3:$E$22,$B14)*3.3)+(INDEX(PCI!$F$3:$F$22,$B14))*5)/12/_stbyVRM -> 0 | H14: 0
A15: eUSB: | B15: 1 | D15: =INDEX(PCI!B$55:B$58,$B15) -> 0 | E15: =INDEX(PCI!C$55:C$58,$B15) -> 0 | F15: =INDEX(PCI!D$55:D$58,$B15)+((D15*3.3)/12)/$L$2+((E15*5)/12)/$M$2 -> 0 | G15: =((INDEX(PCI!E55:E58,$B15)*3.3)+(INDEX(PCI!F55:F58,$B15))*5)/12/_stbyVRM -> 0 | H15: 0
A16: SAS Mezzanine: | B16: 1 | D16: =INDEX(PCI!B$25:B$32,$B16) -> 0 | E16: =INDEX(PCI!C$25:C$32,$B16) -> 0 | F16: =INDEX(PCI!D$25:D$32,$B16)+((D16*3.3)/12)/$L$2+((E16*5)/12)/$M$2 -> 0 | G16: =((INDEX(PCI!E25:E32,$B16)*3.3)+(INDEX(PCI!F25:F32,$B16))*5)/12/_stbyVRM -> 0 | H16: 0
A17: IO Module: | B17: 1 | D17: =INDEX(PCI!B$43:B$52,$B17) -> 0 | E17: =INDEX(PCI!C$43:C$52,$B17) -> 0 | F17: =INDEX(PCI!D$43:D$52,$B17)+((D17*3.3)/12)/$L$2+((E17*5)/12)/$M$2 -> 0 | G17: =((INDEX(PCI!E43:E52,$B17)*3.3)+(INDEX(PCI!F43:F52,$B17))*5)/12/_stbyVRM -> 0 | H17: 0
B18: SubTotals: | F18: =SUM(F3:F17) -> 0 | G18: =SUM(G3:G17) -> 0 | H18: =SUM(H3:H17) -> 0
B19: SubTotal Serverboard Power (Watts): | F19: =(F18)*12 -> 0 | G19: =(G18)*5 -> 0 | H19: =SUM(D19:G19) -> 0
B20: Total System usage: | F20: =Summary!B10 -> 8 | G20: =Summary!C10 -> 0 | H20: =Summary!D10 -> 96
B21: =TEXT(INDEX(Summary!H19:H22,Summary!B19),"###") & TEXT(INDEX(Summary!I19:I22,Summary!B19),"###") &" PS DC Output Limits:" -> 220VAC PS DC Output Limits: | F21: =PS1_12 -> 92 | G21: =PS1_5VSB -> 2.1 | H21: =ps1CombLim -> 1100 | I21: <-- These limits may change based on inlet voltage
B22: CLST Allowance: | F22: =F3*25%+F6*20% -> 0 | H22: =H3*25%+H6*20% -> 0
B23: Total System Limits: | F23: =F22+F21 -> 92 | G23: =G22+G21 -> 2.1 | H23: =H22+H21 -> 1100
C24: Margin compared to Limits: | F24: =F23-F20 -> 84 | G24: =G23-G20 -> 2.1 | H24: =H23-H20 -> 1004 | I24: =IF(OR(F24<0,G24<0,H24<0),"<-- Limits Exceeded!","<--System Margins") -> <--System Margins
H25: =(H21-H20)/H21 -> 0.9127272727 | I25: <-- % margin to PS rating
A31: CPU = 25% of TDP
A32: Memory = 10% Bandwidth

Sheet Serverboard
A1: Serverboard | B1: 12 | C1: 12VSB | D1: Watts | E1: CPU VR Eff% | F1: Mem VR Eff% | G1: 5v VR Eff% | H1: 3v VR Eff% | I1: Stby/Aux Eff%
A2: (Select Serverboard) | E2: 1 | G2: 1 | H2: 1 | I2: 1
A3: Intel® Server Board S2600WT2 | B3: =62/12 -> 5.166666667 | C3: =2.1/12 -> 0.175 | D3: =B3*12+C3*12 -> 64.1 | E3: 0.88 | F3: 0.88 | G3: 0.85 | H3: 0.9 | I3: 0.87
A4: Intel® Server Board S2600WTT | B4: =62/12 -> 5.166666667 | C4: =2.1/12 -> 0.175 | D4: =B4*12+C4*12 -> 64.1 | E4: 0.88 | F4: 0.88 | G4: 0.85 | H4: 0.9 | I4: 0.87
D5: =B5*12+C5*12 -> 0 | E5: 0.8 | F5: 0.8 | G5: 0.8 | H5: 0.8 | I5: 0.8 | J5: <-- Define Custom Numbers Here
D6: 0 | E6: 0.8 | F6: 0.8 | G6: 0.8 | H6: 0.8 | I6: 0.8 | J6: <-- Define Custom Numbers Here
D7: 0 | E7: 0.8 | F7: 0.8 | G7: 0.8 | H7: 0.8 | I7: 0.8 | J7: <-- Define Custom Numbers Here
D8: 0 | E8: 0.8 | F8: 0.8 | G8: 0.8 | H8: 0.8 | I8: 0.8 | J8: <-- Define Custom Numbers Here
D9: 0 | E9: 0.8 | F9: 0.8 | G9: 0.8 | H9: 0.8 | I9: 0.8 | J9: <-- Define Custom Numbers Here
D10: 0 | E10: 0.8 | F10: 0.8 | G10: 0.8 | H10: 0.8 | I10: 0.8 | J10: <-- Define Custom Numbers Here
D11: 0 | E11: 0.8 | F11: 0.8 | G11: 0.8 | H11: 0.8 | I11: 0.8 | J11: <-- Define Custom Numbers Here

Sheet Chassis
A1: Chassis | D1: Total | E1: Fans | F1: HS Fan | G1: HSBP | H1: PS Eff% | L1: Product Name | M1: Total 12 DC Current (Amps) | Q1: Total DC Ouput (Watts)
A2: Selection | B2: 12V | C2: 12VSB | D2: Watts | E2: 12V | F2: (Y/N) | G2: VR Eff% | H2: 220VAC | I2: 115VAC | J2: -48DCV | K2: -60DCV | M2: 220VAC | N2: 115VAC | O2: -48DCV | P2: -60DCV | Q2: 220VAC | R2: 115VAC | S2: -48DCV | T2: -60DCV
A3: (Select Chassis) | G3: 1 | H3: 1 | I3: 1 | J3: 1 | K3: 1 | L3: (Select a Chassis)
A4: R1XXX (1U 750W AC PSU) | B4: =INDEX(M4:P4,Summary!$B$19) -> 62 | C4: 2.1 | D4: =INDEX(Q4:T4,Summary!$B$19) -> 750 | E4: =6*2.1 -> 12.6 | F4: N | G4: 0.9 | H4: 0.94 | I4: 0.92 | L4: R1XXX | M4: 62 | N4: 62 | Q4: 750 | R4: 750
A5: R1XXX (1U 750W DC PSU) | B5: =INDEX(M5:P5,Summary!$B$19) -> 0 | C5: 2.1 | D5: =INDEX(Q5:T5,Summary!$B$19) -> 0 | E5: =6*2.1 -> 12.6 | F5: N | G5: 0.9 | J5: 0.9 | K5: 0.9 | L5: R1XXX | O5: 62 | P5: 62 | S5: 750 | T5: 750
A6: R2XXX (2U 750W AC PSU) | B6: =INDEX(M6:P6,Summary!$B$19) -> 62 | C6: 2.1 | D6: =INDEX(Q6:T6,Summary!$B$19) -> 750 | E6: =5*1.6 -> 8 | F6: Y | G6: 0.9 | H6: 0.94 | I6: 0.92 | L6: R2XXX | M6: 62 | N6: 62 | Q6: 750 | R6: 750
A7: R2XXX (2U 750W DC PSU) | B7: =INDEX(M7:P7,Summary!$B$19) -> 0 | C7: 2.1 | D7: =INDEX(Q7:T7,Summary!$B$19) -> 0 | E7: =5*1.6 -> 8 | F7: Y | G7: 0.9 | J7: 0.9 | K7: 0.9 | L7: R2XXX | O7: 62 | P7: 62 | S7: 750 | T7: 750
A8: R2XXX (2U 1100W AC PSU) | B8: =INDEX(M8:P8,Summary!$B$19) -> 92 | C8: 2.1 | D8: =INDEX(Q8:T8,Summary!$B$19) -> 1100 | E8: =5*1.6 -> 8 | F8: Y | G8: 0.9 | H8: 0.94 | I8: 0.92 | L8: R2XXX | M8: 92 | N8: 75 | Q8: 1100 | R8: 900
A9: User Definable | B9: =INDEX(M9:P9,Summary!$B$19) -> 0 | D9: =INDEX(Q9:T9,Summary!$B$19) -> 0 | F9: N | G9: 0.8 | H9: 0.8 | I9: 0.8 | J9: 0.8 | K9: 0.8 | U9: <-- Define Custom Numbers Here
A10: User Definable | B10: =INDEX(M10:P10,Summary!$B$19) -> 0 | D10: =INDEX(Q10:T10,Summary!$B$19) -> 0 | F10: N | G10: 0.8 | H10: 0.8 | I10: 0.8 | J10: 0.8 | K10: 0.8 | U10: <-- Define Custom Numbers Here
A11: User Definable | B11: =INDEX(M11:P11,Summary!$B$19) -> 0 | D11: =INDEX(Q11:T11,Summary!$B$19) -> 0 | F11: N | G11: 0.8 | H11: 0.8 | I11: 0.8 | J11: 0.8 | K11: 0.8 | U11: <-- Define Custom Numbers Here
A12: User Definable | B12: =INDEX(M12:P12,Summary!$B$19) -> 0 | D12: =INDEX(Q12:T12,Summary!$B$19) -> 0 | F12: N | G12: 0.8 | H12: 0.8 | I12: 0.8 | J12: 0.8 | K12: 0.8 | U12: <-- Define Custom Numbers Here
A13: User Definable | B13: =INDEX(M13:P13,Summary!$B$19) -> 0 | D13: =INDEX(Q13:T13,Summary!$B$19) -> 0 | F13: N | G13: 0.8 | H13: 0.8 | I13: 0.8 | J13: 0.8 | K13: 0.8 | U13: <-- Define Custom Numbers Here
A17: Note: HS Fan (Y/N) determines if an Active Heatsink (Heatsink with Fan) in Intel® Boxed Processors is used (adds fan power to budget)
A18: Note: PS Eff is estimate @ typ voltage & 35% to 90% loading based on PS measurement data.

Sheet Processors
A1: Processor Types | B1: TDP (W) | C1: HS Fan (A) | D1: Source | F1: VRM#1
A2: (Select Processor) | F2: 5V VRM
A3: Intel Xeon® E5-2699 v3 (145W) | B3: 145 | D3: EDS rev1.7 - Intel Doc #507851
A4: Intel Xeon® E5-2698 v3 (135W) | B4: 135 | D4: EDS rev1.7 - Intel Doc #507851
A5: Intel Xeon® E5-2697 v3 (145W) | B5: 145 | D5: EDS rev1.7 - Intel Doc #507851
A6: Intel Xeon® E5-2695 v3 (120W) | B6: 120 | D6: EDS rev1.7 - Intel Doc #507851
A7: Intel Xeon® E5-2690 v3 (135W) | B7: 135 | D7: EDS rev1.7 - Intel Doc #507851
A8: Intel Xeon® E5-2683 v3 (120W) | B8: 120 | D8: EDS rev1.7 - Intel Doc #507851
A9: Intel Xeon® E5-2680 v3 (120W) | B9: 120 | D9: EDS rev1.7 - Intel Doc #507851
A10: Intel Xeon® E5-2670 v3 (120W) | B10: 120 | D10: EDS rev1.7 - Intel Doc #507851
A11: Intel Xeon® E5-2667 v3 (135W) | B11: 135 | D11: EDS rev1.7 - Intel Doc #507851
A12: Intel Xeon® E5-2660 v3 (105W) | B12: 105 | D12: EDS rev1.7 - Intel Doc #507851
A13: Intel Xeon® E5-2650 v3 (105W) | B13: 105 | D13: EDS rev1.7 - Intel Doc #507851
A14: Intel Xeon® E5-2650L v3 (65W) | B14: 65 | D14: EDS rev1.7 - Intel Doc #507851
A15: Intel Xeon® E5-2643 v3 (135W) | B15: 135 | D15: EDS rev1.7 - Intel Doc #507851
A16: Intel Xeon® E5-2640 v3 (90W) | B16: 90 | D16: EDS rev1.7 - Intel Doc #507851
A17: Intel Xeon® E5-2637 v3 (135W) | B17: 135 | D17: EDS rev1.7 - Intel Doc #507851
A18: Intel Xeon® E5-2630 v3 (85W) | B18: 85 | D18: EDS rev1.7 - Intel Doc #507851
A19: Intel Xeon® E5-2630L v3 (55W) | B19: 55 | D19: EDS rev1.7 - Intel Doc #507851
A20: Intel Xeon® E5-2623 v3 (105W) | B20: 105 | D20: EDS rev1.7 - Intel Doc #507851
A21: Intel Xeon® E5-2620 v3 (85W) | B21: 85 | D21: EDS rev1.7 - Intel Doc #507851
A22: Intel Xeon® E5-2609 v3 (85W) | B22: 85 | D22: EDS rev1.7 - Intel Doc #507851
A23: Intel Xeon® E5-2603 v3 (85W) | B23: 85 | D23: EDS rev1.7 - Intel Doc #507851
E24: <-- Define Custom Numbers Here
E25: <-- Define Custom Numbers Here
E26: <-- Define Custom Numbers Here
E27: <-- Define Custom Numbers Here
E28: <-- Define Custom Numbers Here
E29: <-- Define Custom Numbers Here
A32: Processor Quantities (used for tool operation)
A33: 1 | B33: 1
A34: 2 | B34: 2
A35: 3 | B35: 3
A36: 4 | B36: 4
A38: Note: HS Fan = Fan 12v current for Active Heatsink which ships with Intel® Boxed Processors

Sheet Memory
B1: Watts of +12V
B3: 1DPC | C3: 1DPC | D3: 1DPC | E3: 1DPC | F3: 1&2DPC | G3: 2DPC | H3: 2&3DPC | I3: 3DPC
B4: # of DIMMS
A5: Memory | B5: 1 | C5: 2 | D5: 4 | E5: 8 | F5: 12 | G5: 16 | H5: 20 | I5: 24 | M5: TDP
A7: (Select Memory) | M7: 1DPC | N7: 2DPC | O7: 3DPC
A8: 4GB DDR4 RDIMM (4Gb, SRx8) | B8: =M8*B$5 -> 3.2 | C8: =M8*C$5 -> 6.4 | D8: =M8*D$5 -> 12.8 | E8: =M8*E$5 -> 25.6 | F8: =M8*4 +N8*8 -> 32 | G8: =N8*16 -> 38.4 | H8: =N8*16+O8*4 -> 45.6 | I8: =O8*24 -> 43.2 | M8: 3.2 | N8: 2.4 | O8: 1.8
A9: 8GB DDR4 RDIMM (4Gb, SRx4) | B9: =M9*B$5 -> 3.8 | C9: =M9*C$5 -> 7.6 | D9: =M9*D$5 -> 15.2 | E9: =M9*E$5 -> 30.4 | F9: =M9*4 +N9*8 -> 39.2 | G9: =N9*16 -> 48 | H9: =N9*16+O9*4 -> 57.6 | I9: =O9*24 -> 57.6 | M9: 3.8 | N9: 3 | O9: 2.4
A10: 8GB DDR4 RDIMM (8Gb, SRx8) | B10: =M10*B$5 -> 3.2 | C10: =M10*C$5 -> 6.4 | D10: =M10*D$5 -> 12.8 | E10: =M10*E$5 -> 25.6 | F10: =M10*4 +N10*8 -> 32 | G10: =N10*16 -> 38.4 | H10: =N10*16+O10*4 -> 46 | I10: =O10*24 -> 45.6 | M10: 3.2 | N10: 2.4 | O10: 1.9
A11: 16GB DDR4 RDIMM (8Gb, SRx4) | B11: =M11*B$5 -> 4 | C11: =M11*C$5 -> 8 | D11: =M11*D$5 -> 16 | E11: =M11*E$5 -> 32 | F11: =M11*4 +N11*8 -> 41.6 | G11: =N11*16 -> 51.2 | H11: =N11*16+O11*4 -> 61.6 | I11: =O11*24 -> 62.4 | M11: 4 | N11: 3.2 | O11: 2.6
A12: 16GB DDR4 RDIMM (4Gb, DRx4) | B12: =M12*B$5 -> 5 | C12: =M12*C$5 -> 10 | D12: =M12*D$5 -> 20 | E12: =M12*E$5 -> 40 | F12: =M12*4 +N12*8 -> 54.4 | G12: =N12*16 -> 68.8 | H12: =N12*16+O12*4 -> 83.2 | I12: =O12*24 -> 86.4 | M12: 5 | N12: 4.3 | O12: 3.6
A13: 32GB DDR4 RDIMM (8Gb, DRx4) | B13: 5.5 | C13: 11 | D13: 22 | E13: 44 | F13: 60.4 | G13: 76.8 | H13: 92.8 | I13: 96 | M13: 5.5 | N13: 4.8 | O13: 4
A14: 32GB DDR4 LRDIMM (4Gb, QRx4) | B14: 10 | C14: 20 | D14: 40 | E14: 80 | F14: 108 | G14: 136 | H14: 163.6 | I14: 165.6 | M14: 10 | N14: 8.5 | O14: 6.9
A15: 64GB DDR4 LRDIMM (8Gb, QRx4) | B15: 10.8 | C15: 21.6 | D15: 43.2 | E15: 86.4 | F15: 118.4 | G15: 150.4 | H15: 181.6 | I15: 187.2 | M15: 10.8 | N15: 9.4 | O15: 7.8
A16: User Definable | J16: <-- Define Custom Numbers Here
A17: User Definable | J17: <-- Define Custom Numbers Here
A18: User Definable | J18: <-- Define Custom Numbers Here
A19: User Definable | J19: <-- Define Custom Numbers Here | M19: 15.19 | N19: 7.5 | O19: 3.71
A20: User Definable | J20: <-- Define Custom Numbers Here
A21: User Definable | J21: <-- Define Custom Numbers Here | M21: is this broken with single CPU?
A25: Note:
A26: DIMM power will vary depending on the # of DIMMs & the actual stress/bandwidth used.
A27: DIMMs are assumed to be evenly distributed across available channels on a 4 channel motherboard.
A28: Numbers assume fan control set to performance mode
A31: 0
A32: 1
A33: 2
A34: 4
A35: 8
A36: 12
A37: 16
A38: 20
A39: 24
A40: 28
A41: 32

Sheet PCI
B1: Amps of +3.3V | C1: Amps of +5V | D1: Amps of +12V | E1: Amps of 3.3V Stby | F1: Amps of 5V Stby | G1: Watts
A2: PCI Add in Cards
A3: Slot Empty
A4: PCI-X (5V) Typical | C4: 2 | G4: =B4*3.3+C4*5+D4*12+E4*3.3+F4*5 -> 10
A5: PCIe (3V) Typical | B5: 3 | G5: 9.9
A6: PCIe (3.3V / 12V) Typical | B6: 2 | D6: 0.25 | G6: 9.6
A7: PCIe (3.3V / 12V) High | B7: 2 | D7: 0.7 | G7: 15
A8: RS3DC080 | B8: 0.793 | D8: 1.09 | E8: 0.001 | G8: 15.7002
A9: RES3FV288 | D9: 1.04 | G9: 12.48
A10: PCIe SSD AIC (Cabled) | B10: 0.36 | D10: 0.92 | E10: 0.002 | G10: 12.2346
A11: Intel® Xeon Phi™ 5110P | B11: 1.3 | D11: =220.7/12 -> 18.39166667 | G11: 224.99
A12: Intel® Xeon Phi™ 3120A/P | B12: 1.3 | D12: =295.7/12 -> 24.64166667 | G12: 299.99
A13: Intel® Xeon Phi™ 7120P | B13: 1.3 | D13: =295.7/12 -> 24.64166667 | G13: 299.99
A14: User Definable | G14: =B14*3.3+C14*5+D14*12+E14*3.3+F14*5 -> 0 | H14: <-- Define Custom Card Here
A15: User Definable | G15: 0 | H15: <-- Define Custom Card Here
A16: User Definable | G16: 0 | H16: <-- Define Custom Card Here
A17: User Definable | G17: 0 | H17: <-- Define Custom Card Here
A18: User Definable | G18: 0 | H18: <-- Define Custom Card Here
A19: User Definable | G19: 0 | H19: <-- Define Custom Card Here
A20: User Definable | G20: 0 | H20: <-- Define Custom Card Here
A21: User Definable | G21: 0 | H21: <-- Define Custom Card Here
A22: User Definable | G22: 0 | H22: <-- Define Custom Card Here
A24: SAS ROC/IOC
A25: Slot Empty
A26: RMS3JC080 | D26: 1.59 | E26: 0.001 | G26: =B26*3.3+C26*5+D26*12+E26*3.3+F26*5 -> 19.0833
A27: RMS3HC080 | B27: 0.793 | D27: 0.915 | E27: 0.001 | G27: 13.6002
A28: RMS3CC080 | B28: 0.793 | D28: 1.09 | E28: 0.001 | G28: =B28*3.3+C28*5+D28*12+E28*3.3+F28*5 -> 15.7002
A29: RMS25CB080 (Mezz ROC) | B29: 0.86 | D29: 0.55 | E29: 0.2 | G29: =B29*3.3+C29*5+D29*12+E29*3.3+F29*5 -> 10.098
A30: RMT3CB080 (Imezz OM) | B30: 0.86 | D30: 0.55 | E30: 0.2 | G30: =B30*3.3+C30*5+D30*12+E30*3.3+F30*5 -> 10.098
A31: User Definable | G31: =B31*3.3+C31*5+D31*12+E31*3.3+F31*5 -> 0 | H31: <-- Define Custom Card Here
A32: User Definable | G32: 0 | H32: <-- Define Custom Card Here
A34: Backup Battery
A35: Slot Empty
A36: RMFBU2 | D36: 0.5 | E36: 0.003 | G36: =B36*3.3+C36*5+D36*12+E36*3.3+F36*5 -> 6.0099
A37: RMFBU3 | D37: 0.23 | E37: 0.003 | G37: 2.7699
A38: RMFBU5 | D38: 0.23 | E38: 0.003 | G38: 2.7699
A39: User Definable | G39: 0 | H39: <-- Define Custom Card Here
A40: User Definable | G40: 0 | H40: <-- Define Custom Card Here
A42: IO Module
A43: Slot Empty
A44: AXX1P40FRTIOM | D44: 0.4 | E44: 0.06 | G44: =B44*3.3+C44*5+D44*12+E44*3.3+F44*5 -> 4.998
A45: AXX2P40FRTIOM | D45: 0.49 | E45: 0.06 | G45: 6.078
A46: AXX10GBNIAIOM | B46: 1.457 | D46: 0.57 | E46: 0.002 | G46: 11.6547
A47: AXX10GBTWLIOM | D47: 1.21 | E47: 0.019 | F47: 0.03 | G47: 14.7327
A48: AXX4P1GBPWLIOM | D48: 0.27 | E48: 0.35 | G48: 4.395
A49: AXX1FDRIBIOM | B49: 0.77 | D49: 0.46 | E49: 0.002 | G49: 8.0676
A50: AXX2FDRIBIOM | B50: 1.23 | D50: 0.46 | E50: 0.002 | G50: 9.5856
A51: User Definable | G51: 0 | H51: <-- Define Custom Card Here
A52: User Definable | G52: 0 | H52: <-- Define Custom Card Here
A54: eUSB
A55: Slot Empty
A56: Generic eUSB | E56: 0.08 | G56: =B56*3.3+C56*5+D56*12+E56*3.3+F56*5 -> 0.264
A57: User Definable | G57: 0 | H57: <-- Define Custom Card Here
A58: User Definable | G58: 0 | H58: <-- Define Custom Card Here

Sheet HardDrive
A1: Hard Drives | B1: Amps of +3.3V | C1: Amps of +5V | D1: Amps of +12V | E1: Watts
A2: Empty
A3: 3.5" SATA Typical Power (12W) | C3: 0.44 | D3: 0.78 | E3: =B3*3.3+C3*5+D3*12 -> 11.56
A4: 3.5" SAS Typical Power (12W) | C4: 0.6 | D4: 0.76 | E4: =B4*3.3+C4*5+D4*12 -> 12.12
A5: 2.5" SATA Typical Power (5W) | C5: 1 | D5: 0 | E5: 5
A6: 2.5" SAS Typical Power (9W) | C6: 0.81 | D6: 0.41 | E6: 8.97
A7: Intel® PCIe SSD DC P3700 | D7: 2.08 | E7: 24.96
A8: Intel® SSD DC S3700 Series SSDSC2BA800G3 | C8: 1.15 | D8: 0.5 | E8: 11.75
A9: Intel® SSD DC S3500 Series SSDSC2BB080G4 | C9: 0.4 | D9: 0.18 | E9: 4.16
A10: 3.5" SAS Seagate ST3000NM0043 Constellation ES.3 | C10: 0.44 | D10: 0.71 | E10: =B10*3.3+C10*5+D10*12 -> 10.72 | G10: <-- Define Custom Device Here
A11: 3.5" SATA HGST HUS724040ALE640 Ultrastar 7K4000 | C11: 0.35 | D11: 0.8 | E11: =B11*3.3+C11*5+D11*12 -> 11.35 | G11: <-- Define Custom Device Here
A12: 2.5" SAS Seagate ST9000640SS Constellation.2 | C12: 0.56 | D12: 0.3 | E12: 6.4 | G12: <-- Define Custom Device Here
A13: User Definable | E13: 0 | G13: <-- Define Custom Device Here
A14: User Definable | E14: 0 | G14: <-- Define Custom Device Here
A15: User Definable | E15: 0 | G15: <-- Define Custom Device Here
A16: User Definable | E16: 0 | G16: <-- Define Custom Device Here
A17: User Definable | E17: 0 | G17: <-- Define Custom Device Here
A18: User Definable | E18: 0 | G18: <-- Define Custom Device Here
A19: User Definable | E19: 0 | G19: <-- Define Custom Device Here
A21: HSBP | B21: Amps of +3.3V | C21: Amps of +5V | D21: Amps of +12V | E21: Watts | F21: # of HDD
A22: Empty
A23: 1U 4x3.5" HSBP 12G | D23: 0.17 | E23: =B23*3.3+C23*5+D23*12 -> 2.04 | F23: 4
A24: 1U 8x2.5" HSBP 12G | D24: 0.25 | E24: 3 | F24: 8
A25: 1U Combo 8x2.5" HSBP | D25: 0.25 | E25: 3 | F25: 8
A26: 2U 8x3.5" HSBP 12G | D26: 0.25 | E26: 3 | F26: 8
A27: 2U 8x2.5" HSBP 12G | D27: 0.11 | E27: 1.32 | F27: 8
A28: 2U 8x2.5" HSBP Dual Channel 12G | D28: 0.12 | E28: 1.44 | F28: 8
A29: 2U Combo 8x2.5" HSBP | D29: 0.11 | E29: 1.32 | F29: 8
A30: 2U 12x3.5" HSBP 12G | D30: 0.4 | E30: 4.8 | F30: 12
A31: User Definable | E31: 0 | G31: <-- Define Custom Device Here
A32: User Definable | E32: 0 | G32: <-- Define Custom Device Here
A33: User Definable | E33: 0 | G33: <-- Define Custom Device Here
A34: User Definable | E34: 0 | G34: <-- Define Custom Device Here
A35: User Definable | E35: 0 | G35: <-- Define Custom Device Here
A36: User Definable | E36: 0 | G36: <-- Define Custom Device Here
A38: Rear HSBP | B38: Amps of +3.3V | C38: Amps of +5V | D38: Amps of +12V | E38: Watts | F38: # of HDD
A39: Empty
A40: 2U 2x2.5" Rear HSBP | B40: 0.12 | E40: =B40*3.3+C40*5+D40*12 -> 0.396 | F40: 2
A41: User Definable | E41: 0 | G41: <-- Define Custom Device Here

Sheet Peripherals
A1: Misc Peripherals | B1: Amps of +3.3V | C1: Amps of +5V | D1: Amps of +12V | E1: Amps of 3VSB | F1: Watts
A2: Slim-Line Devices
A3: Empty
A4: AXXSATADVDROM | C4: 0.7 | F4: =B4*3.3+C4*5+D4*12++E4*3.3 -> 3.5
A5: AXXSATADVDRWROM | C5: 0.8 | F5: =B5*3.3+C5*5+D5*12++E5*3.3 -> 4
A6: User Definable | F6: 0 | G6: <-- Define Custom Peripherals Here
A7: User Definable | F7: 0 | G7: <-- Define Custom Peripherals Here
A8: User Definable | F8: 0 | G8: <-- Define Custom Peripherals Here
A9: User Definable | F9: 0 | G9: <-- Define Custom Peripherals Here
A11: SSD Drives
A12: Empty
A13: User Definable | F13: =B13*3.3+C13*5+D13*12++E13*3.3 -> 0 | G13: <-- Define Custom Peripherals Here
A14: User Definable | F14: 0 | G14: <-- Define Custom Peripherals Here
A15: User Definable | F15: 0 | G15: <-- Define Custom Peripherals Here
A16: User Definable | F16: 0 | G16: <-- Define Custom Peripherals Here
A18: Midplane SAS Expanders
A19: Empty
A20: RES3TV360 | D20: 1.04 | F20: =B20*3.3+C20*5+D20*12++E20*3.3 -> 12.48
A21: User Definable | F21: 0 | G21: <-- Define Custom Peripherals Here
A22: User Definable | F22: 0 | G22: <-- Define Custom Peripherals Here
A23: User Definable | F23: 0 | G23: <-- Define Custom Peripherals Here
A24: User Definable | F24: 0 | G24: <-- Define Custom Peripherals Here

Sheet Revision
A1: =MAX(A4:A27) -> 2014-10-01 | B1: =MAX(B4:B27) -> 1.1 | D1: <=== Linked to Summary Tab.
A3: Date | B3: Rev | C3: Notes | D3: Init
A4: 2013-09-23 | B4: 0.1 | C4: Initial Draft - working copy | D4: mj
A5: 2014-02-04 | B5: 0.5 | C5: Beta release for review | D5: mj
A6: 2014-02-25 | B6: 0.6 | C6: Updated Haswell CPU list, Feedback from Dan. | D6: mj
A7: 2014-06-25 | B7: 0.8 | C7: Updated for Silver | D7: mj
A8: 2014-07-22 | B8: 0.9 | C8: Final draft updates, adding AP list items and final power data for components. French and Truches Valley, RAID modules (UC question.) | D8: mj
A9: 2014-09-02 | B9: 1 | C9: Final thermal config tables updated. Prepared tool for external release. Updated Thermal Configuration notes. | D9: mj
A10: 2014-09-03 | B10: 1.1 | C10: Add third HDD type to 'Configure System' page. Power updated for AXX1P40FRTIOM and AXX2P40FRTIOM. Fan Fail Config updated due to addition of 1U support truss. | D10: mj
A11: 2014-10-01 | B11: 1.1 | C11: Changed Wildcat Pass code names to marketing names. | D11: mj
